bitfinex/quotes_ETHUSD_20260310
["timestamp","ask_amount","ask_price","bid_price","bid_amount"]
[1773105030840,0.45915724,2020.8,2020.4,0.001]
[1773105031158,0.45915724,2020.7,2020.1,0.001]
[1773105031343,0.45915724,2020.7,2020.0,0.001]
[1773105031344,0.45915724,2020.4,2019.9,0.001]
[1773105031521,0.45915724,2020.2,2019.9,0.001]
[1773105032319,1.69671973,2020.1,2019.9,0.001]
[1773105032767,0.45915724,2020.1,2019.9,0.001]
[1773105034435,1.23762376,2020.0,2019.9,0.001]
[1773105034950,1.69674939,2020.1,2019.9,0.001]
[1773105035529,3.19574939,2020.1,2019.9,0.001]
[1773105036654,1.69674939,2020.1,2019.9,0.001]
[1773105036839,2.73759215,2020.1,2019.9,0.001]
[1773105037360,1.68946809,2020.1,2019.8,0.001]
[1773105037544,0.45187594,2020.0,2019.6,0.001]
[1773105038070,1.5,2019.9,2019.6,0.001]
[1773105038668,2.73773672,2019.9,2019.6,0.001]
[1773105038837,0.45187594,2019.8,2019.6,0.001]
[1773105039043,1.5,2019.9,2019.6,0.001]
[1773105039342,0.45187594,2020.0,2019.6,0.001]
[1773105039343,1.501,2019.8,2019.6,0.001]
[1773105039653,1.68951164,2020.0,2019.6,0.001]
[1773105039654,1.501,2020.0,2019.6,0.49133199]
[1773105039852,0.45187594,2020.3,2019.6,0.49133199]
[1773105040052,1.501,2020.0,2019.6,0.49133199]
[1773105040672,1.501,2020.0,2019.6,1.72917035]
[1773105041777,1.68932502,2020.3,2019.7,0.49033199]
[1773105041944,1.502,2020.2,2019.7,0.49033199]
[1773105042345,0.45187594,2020.1,2019.6,1.23885779]
[1773105042745,0.45187594,2020.1,2019.6,0.001]
[1773105042746,1.6894997,2020.0,2019.6,0.001]
[1773105042960,1.23759246,2020.1,2019.6,0.49133199]
[1773105043154,1.6894684,2020.1,2019.6,0.49133199]
[1773105043355,0.45187594,2020.0,2019.6,0.001]
[1773105044078,0.45187594,2020.0,2019.6,0.49133199]
[1773105045164,1.68954836,2020.0,2019.6,0.49133199]
[1773105045367,1.68954836,2020.0,2019.6,0.001]
[1773105045368,0.45187594,2019.9,2019.6,0.001]
[1773105045864,1.95487594,2019.8,2019.6,0.001]
[1773105047991,1.23780759,2019.7,2019.6,0.001]
[1773105048356,1.23780759,2019.7,2019.4,1.34934576]
[1773105048357,1.68968353,2019.7,2019.4,1.34934576]
[1773105048561,0.45187594,2019.6,2019.3,0.001]
[1773105050000,1.68980612,2019.5,2019.3,0.001]
[1773105053608,1.506,2019.4,2019.3,0.001]
[1773105054818,1.23774631,2019.8,2019.3,0.47546562]
[1773105055194,1.70890956,2019.8,2019.3,0.47546562]
[1773105056120,0.47116325,2019.7,2019.3,0.47546562]
[1773105056784,1.23786888,2019.6,2019.3,0.47546562]
[1773105056988,1.23968725,2019.9,2019.4,0.47446562]
[1773105057225,1.508,2019.8,2019.4,0.47446562]
[1773105057394,0.002,2019.9,2019.4,0.47446562]
[1773105057594,1.505,2019.9,2019.4,0.47446562]
[1773105058095,0.002,2019.9,2019.4,0.47446562]
[1773105058295,0.002,2020.1,2019.4,0.47446562]
[1773105058803,0.002,2020.1,2019.6,0.47446562]
[1773105059731,0.002,2019.8,2019.6,0.47446562]
[1773105061029,0.002,2020.1,2019.8,0.47446562]
[1773105061207,0.002,2020.4,2019.8,0.47446562]
[1773105061409,0.002,2020.9,2020.2,0.47446562]
[1773105061613,0.002,2020.9,2020.4,0.47446562]
[1773105062337,0.002,2021.1,2020.4,0.47446562]
[1773105063032,0.002,2021.1,2020.6,0.47446562]
[1773105063336,0.002,2021.3,2020.7,0.47446562]
[1773105065315,0.002,2021.3,2020.9,0.48945663]
[1773105068059,0.002,2021.3,2020.9,1.72648867]
[1773105068247,0.49159263,2021.3,2020.9,1.23703204]
[1773105070157,0.002,2021.3,2020.8,0.48945663]
[1773105070936,0.002,2021.4,2020.8,0.48945663]
[1773105071632,0.002,2021.1,2020.8,0.48945663]
[1773105072356,0.002,2021.1,2021.0,0.48945663]
[1773105072958,0.002,2021.3,2021.1,0.48945663]
[1773105074143,0.002,2021.3,2021.2,1.7263456]
[1773105076571,0.002,2021.3,2020.9,1.23707259]
[1773105076869,0.002,2021.3,2020.8,1.72656779]
[1773105077262,0.002,2021.3,2020.8,0.48945663]
[1773105077443,0.002,2021.3,2020.8,1.72655747]
[1773105078377,0.002,2021.3,2020.9,0.48945663]
[1773105079462,0.49159263,2021.3,2020.8,1.23710084]
[1773105079666,0.49159263,2021.3,2020.8,1.72655747]
[1773105080174,1.7264816,2021.2,2020.7,4.94877275]
[1773105080373,1.7264816,2021.2,2020.7,1.23719503]
[1773105080574,0.48959263,2021.1,2020.6,0.49045663]
[1773105080761,0.48959263,2021.1,2020.6,1.72769557]
[1773105080958,0.48959263,2021.1,2020.6,0.49045663]
[1773105081156,0.48959263,2021.1,2020.6,1.72770663]
[1773105082182,1.72655773,2021.1,2020.6,1.72770663]
[1773105082377,1.72654609,2021.1,2020.6,1.72770663]
[1773105083187,0.48959263,2021.0,2020.6,0.001]
[1773105083496,0.48959263,2021.0,2020.6,1.23824953]
[1773105083707,0.48959263,2021.0,2020.6,0.001]
[1773105084282,1.72660472,2021.0,2020.6,0.001]
[1773105084597,0.48959263,2021.0,2020.6,0.001]
[1773105084974,0.002,2021.1,2020.6,0.49045663]
[1773105086299,0.002,2021.1,2020.7,1.72665166]
[1773105086678,0.002,2021.1,2020.8,0.48945663]
[1773105088071,0.002,2021.1,2020.7,1.23719503]
[1773105088267,0.49159263,2021.1,2020.7,1.23719503]
[1773105088700,0.002,2021.1,2020.7,1.23719503]
[1773105088884,0.002,2021.1,2020.7,1.72665166]
[1773105089087,0.002,2021.1,2020.6,1.72766975]
[1773105090521,0.49159263,2021.1,2020.6,0.001]
[1773105090721,0.49159263,2021.1,2020.6,1.23824276]
[1773105092621,0.002,2021.1,2020.7,0.48945663]
[1773105095226,0.002,2021.1,2020.8,1.2371338]
[1773105095847,0.002,2021.1,2020.7,1.23714657]
[1773105096144,0.47787731,2021.1,2020.7,1.23714657]
[1773105096317,0.47787731,2021.1,2020.6,4.94998982]
[1773105096318,0.47787731,2021.1,2020.6,0.001]
[1773105096490,0.47787731,2021.1,2020.6,1.23823623]
[1773105096702,0.47787731,2021.1,2020.9,0.001]
[1773105097448,1.71484538,2021.1,2020.9,0.001]
[1773105098002,0.47787731,2021.1,2020.9,0.001]
[1773105098355,0.002,2021.1,2020.9,0.001]
[1773105098506,0.002,2021.3,2020.9,0.49455623]
[1773105099633,0.002,2021.3,2021.0,1.23701138]
[1773105101039,0.002,2021.3,2021.0,1.73056761]
[1773105101205,0.002,2021.3,2021.0,1.23701138]
[1773105101736,0.002,2021.3,2021.1,0.49355623]
[1773105103342,0.002,2021.3,2021.0,1.23701138]
[1773105104749,0.47787731,2021.3,2020.9,1.23802851]
[1773105105048,0.47787731,2021.3,2020.9,0.001]
[1773105106150,1.71474817,2021.3,2020.9,0.001]
[1773105106624,0.47787731,2021.3,2020.9,0.001]
[1773105107033,1.71470625,2021.3,2020.9,0.001]
[1773105107552,1.23882894,2021.3,2020.9,0.001]
[1773105107755,0.47587731,2021.2,2020.9,0.001]
[1773105108255,1.71277523,2021.2,2020.9,0.001]
[1773105108752,0.47587731,2021.2,2020.9,0.001]
[1773105109154,1.71277057,2021.2,2020.9,0.001]
[1773105109356,0.002,2021.0,2020.9,0.001]
[1773105115661,0.46731873,2021.0,2020.7,0.001]
[1773105116055,0.002,2021.0,2020.7,0.45376168]
[1773105117965,0.002,2021.0,2020.8,1.2371338]
[1773105118140,0.002,2021.0,2020.8,1.68989548]
[1773105120265,0.002,2021.0,2020.9,0.45276168]
[1773105120875,0.002,2021.0,2020.7,0.001]
[1773105120876,0.46731873,2021.0,2020.7,0.001]
[1773105121488,0.46731873,2021.0,2020.5,0.001]
[1773105121692,0.46531873,2020.9,2020.5,0.001]
[1773105122092,1.2371338,2020.8,2020.5,0.001]
[1773105122277,0.46531873,2020.7,2020.5,0.001]
[1773105124495,0.002,2021.0,2020.5,0.47851512]
[1773105124870,0.002,2021.0,2020.6,0.47751512]
[1773105125768,0.002,2021.0,2020.7,0.47751512]
[1773105125964,0.002,2021.0,2020.8,0.47751512]
[1773105126163,0.002,2021.2,2020.8,0.47751512]
[1773105126563,0.002,2021.2,2021.0,0.47751512]
[1773105129173,0.002,2021.4,2021.1,1.71446529]
[1773105129376,0.45923636,2021.8,2021.2,0.47751512]
[1773105131501,0.45923636,2021.8,2021.2,1.23685366]
[1773105131502,0.45923636,2021.6,2021.2,1.23685366]
[1773105133502,0.45923636,2021.6,2021.1,4.94767939]
[1773105134504,1.23670395,2021.6,2021.0,1.23699299]
[1773105134707,0.45923636,2021.5,2020.9,1.2370528]
[1773105135608,0.45923636,2021.4,2020.9,1.2370528]
[1773105136206,0.45923636,2021.4,2020.9,1.71456792]
[1773105137216,0.002,2021.6,2021.0,0.47751512]
[1773105137417,1.69788297,2021.6,2021.0,0.47751512]
[1773105137608,0.45923636,2021.5,2021.1,1.23695017]
[1773105139506,0.45923636,2021.5,2021.1,1.71446529]
[1773105139683,0.002,2021.6,2021.1,1.71446529]
[1773105139887,0.46123636,2021.6,2021.1,1.71446529]
[1773105140492,0.46123636,2021.6,2021.1,1.71441904]
[1773105140692,0.46123636,2021.6,2021.0,1.23696679]
[1773105141403,0.46123636,2021.6,2021.0,1.71448191]
[1773105141808,0.45923636,2021.5,2021.0,1.71448191]
[1773105143293,0.002,2021.6,2021.1,0.47751512]
[1773105143609,0.46123636,2021.6,2021.1,0.47751512]
[1773105144181,0.46123636,2021.6,2021.2,1.23688897]
[1773105145620,0.45923636,2021.5,2021.2,1.23688897]
[1773105145791,0.45923636,2021.5,2021.0,1.23701138]
[1773105146314,0.45923636,2021.4,2021.0,1.23701138]
[1773105146725,0.002,2021.6,2021.1,0.47751512]
[1773105147224,0.45923636,2021.5,2021.3,0.001]
[1773105147417,0.45923636,2021.5,2021.0,1.23701138]
[1773105147584,0.002,2021.3,2021.0,1.23701138]
[1773105147790,0.002,2021.3,2021.0,1.23801138]
[1773105148013,0.002,2021.3,2021.0,1.7155265]
[1773105150127,0.002,2021.3,2021.0,1.23799362]
[1773105150327,0.46123636,2021.3,2021.0,0.001]
[1773105151343,0.002,2021.3,2021.1,0.47751512]
[1773105152196,0.002,2021.3,2021.1,1.71441913]
[1773105152401,0.002,2021.3,2021.0,1.23796794]
[1773105152633,0.46123636,2021.3,2021.0,1.23796794]
[1773105152809,0.46123636,2021.3,2021.0,0.001]
[1773105153012,0.46123636,2021.3,2021.0,1.23800481]
[1773105153441,0.46123636,2021.3,2021.0,0.001]
[1773105153732,0.45356543,2021.1,2020.8,0.001]
[1773105155441,0.45356543,2020.9,2020.5,0.001]
[1773105156653,0.45356543,2020.8,2020.5,0.001]
[1773105160172,0.45356543,2020.8,2020.7,0.001]
[1773105162071,1.69069923,2020.8,2020.7,0.001]
[1773105162449,1.69069923,2020.8,2020.5,0.001]
[1773105162792,0.45356543,2020.7,2020.3,1.73551358]
[1773105162973,0.45356543,2021.0,2020.4,0.49713199]
[1773105163871,1.93656543,2021.0,2020.5,1.73444948]
[1773105164267,3.1735845,2021.0,2020.5,1.73444948]
[1773105164664,0.45356543,2020.9,2020.5,1.73444948]
[1773105165073,4.94982237,2021.1,2020.6,0.49713199]
[1773105165074,0.45556543,2021.1,2020.6,0.49713199]
[1773105165261,0.002,2021.1,2020.6,0.49713199]
[1773105165980,0.002,2021.1,2020.7,1.23719503]
[1773105166285,0.002,2021.1,2020.7,1.73432702]
[1773105169885,0.48966728,2021.1,2020.7,1.73427098]
[1773105170057,0.002,2021.1,2020.8,0.4634935]
[1773105171269,0.002,2021.1,2020.8,1.70057611]
[1773105172459,0.002,2020.9,2020.8,1.70057611]
[1773105175466,0.002,2020.9,2020.8,1.23708261]
[1773105182211,0.002,2020.9,2020.8,0.4634935]
[1773105183090,0.002,2021.1,2020.7,0.4634935]
[1773105183493,0.47316974,2021.1,2020.7,0.4634935]
[1773105185211,0.002,2020.9,2020.8,1.2371338]
[1773105186125,0.47316974,2020.9,2020.6,0.001]
[1773105187190,0.47116974,2020.7,2020.6,0.001]
[1773105188920,0.47116974,2020.7,2020.4,0.001]
[1773105189918,0.47116974,2020.6,2020.4,0.001]
[1773105190821,1.23723389,2020.7,2020.1,0.4882686]
[1773105190998,0.47116974,2020.5,2020.1,0.001]
[1773105192219,0.47116974,2020.3,2020.1,0.001]
[1773105194355,0.47116974,2020.2,2020.1,0.001]
[1773105195226,0.45084655,2020.4,2020.1,0.001]
[1773105195612,1.93484655,2020.7,2020.1,0.4882686]
[1773105195816,0.45084655,2020.6,2020.1,0.4882686]
[1773105196525,0.45084655,2020.5,2020.1,1.23852094]
[1773105196690,0.45084655,2020.5,2020.3,0.001]
[1773105197591,0.45084655,2020.8,2020.3,0.4882686]
[1773105197797,1.481,2020.7,2020.3,0.4882686]
[1773105198505,0.45084655,2020.8,2020.4,1.23737873]
[1773105198726,1.482,2020.7,2020.4,1.23737873]
[1773105198929,1.93284655,2020.8,2020.4,1.23737873]
[1773105199905,1.68798547,2020.8,2020.4,1.23737873]
[1773105200126,1.93284655,2020.8,2020.4,1.23737873]
[1773105200430,0.45084655,2020.7,2020.4,1.23737873]
[1773105200638,0.45084655,2020.8,2020.4,1.72464733]
[1773105200807,1.93284655,2020.8,2020.4,1.72464733]
[1773105201012,0.45084655,2020.7,2020.3,1.23839491]
[1773105201930,0.45084655,2020.7,2020.3,0.001]
[1773105202524,0.45084655,2020.5,2020.3,0.001]
[1773105208539,0.45084655,2020.5,2020.4,0.001]
[1773105208721,0.45284655,2020.5,2020.4,0.001]
[1773105208907,0.45284655,2020.5,2020.1,1.19103148]
[1773105209107,0.45284655,2020.5,2020.2,0.001]
[1773105209741,0.45084655,2020.4,2020.2,0.001]
[1773105210714,0.45284655,2020.5,2020.2,0.001]
[1773105211237,0.45084655,2020.3,2020.2,0.001]
[1773105211626,1.484,2020.4,2020.2,0.001]
[1773105211840,1.93484655,2020.4,2020.2,0.001]
[1773105212440,0.45084655,2020.3,2020.2,0.001]
[1773105213847,1.484,2020.3,2020.2,0.001]
[1773105214920,1.93484655,2020.3,2020.2,0.001]
[1773105219861,1.93484655,2020.3,2020.0,0.46575542]
[1773105219862,0.45084655,2020.2,2020.0,0.001]
[1773105220223,1.484,2020.3,2020.0,0.001]
[1773105220419,1.484,2020.3,2020.1,0.46475542]
[1773105221049,1.68823421,2020.4,2020.1,0.46475542]
[1773105221258,1.485,2020.3,2020.1,0.46475542]
[1773105221757,1.93584655,2020.3,2020.0,0.001]
[1773105223327,1.93584655,2020.3,2020.0,0.46575542]
[1773105223328,1.485,2020.3,2020.0,0.46575542]
[1773105223562,1.485,2020.3,2020.1,0.46475542]
[1773105223721,0.002,2020.3,2020.1,1.70230068]
[1773105223927,1.487,2020.3,2020.1,1.70230068]
[1773105224571,1.487,2020.3,2020.1,0.46475542]
[1773105225055,1.487,2020.3,2020.1,1.7023154]
[1773105225255,1.487,2020.3,2020.1,0.46475542]
[1773105225425,1.487,2020.3,2020.1,1.70225978]
[1773105225825,0.002,2020.3,2020.1,1.70225978]
[1773105227356,0.002,2020.3,2020.2,0.46475542]
[1773105227958,0.002,2020.3,2020.2,1.70225665]
[1773105231661,0.002,2020.3,2020.1,1.23751608]
[1773105232042,0.002,2020.3,2020.0,1.71527013]
[1773105233336,0.45484655,2020.3,2020.0,1.71527013]
[1773105234064,0.45484655,2020.3,2020.0,0.47769951]
[1773105234253,0.45484655,2020.3,2020.0,1.71530406]
[1773105235463,0.45484655,2020.3,2020.2,0.001]
[1773105237659,0.002,2020.3,2020.2,0.001]
[1773105238967,0.45484655,2020.3,2020.2,0.001]
[1773105241864,0.45484655,2020.3,2019.9,0.001]
[1773105241865,0.45284655,2020.2,2019.9,0.001]
[1773105242058,0.45284655,2020.0,2019.7,2.24685978]
[1773105242571,0.45284655,2020.0,2019.7,0.47769951]
[1773105243267,0.45284655,2020.0,2019.7,0.001]
[1773105243640,1.483,2020.2,2019.8,0.48561386]
[1773105243866,1.483,2020.2,2019.9,1.72329889]
[1773105244067,0.45284655,2020.1,2019.7,0.001]
[1773105244263,0.45284655,2020.1,2019.7,0.48661386]
[1773105245477,0.45284655,2020.1,2019.8,0.48561386]
[1773105245647,0.45284655,2020.0,2019.7,0.001]
[1773105245972,1.69048769,2020.0,2019.7,0.001]
[1773105247767,0.45284655,2020.0,2019.7,0.001]
[1773105247975,0.45284655,2020.0,2019.7,0.48661386]
[1773105248572,0.45284655,2020.0,2019.9,0.001]
[1773105248867,0.45484655,2020.0,2019.9,0.001]
[1773105250071,0.002,2020.0,2019.9,0.001]
[1773105250276,0.002,2020.0,2019.9,0.48661386]
[1773105250973,0.002,2020.0,2019.9,0.001]
[1773105259382,1.487,2020.0,2019.9,0.001]
[1773105259585,0.002,2020.0,2019.9,0.48661386]
[1773105259900,1.6923346,2020.3,2020.0,0.48561386]
[1773105259901,1.487,2020.3,2020.0,0.48561386]
[1773105260653,0.002,2020.3,2020.1,1.72317635]
[1773105260873,0.002,2020.3,2020.1,0.48561386]
[1773105263886,0.002,2020.3,2020.1,1.72316197]
[1773105264362,0.002,2020.3,2020.2,0.48561386]
[1773105265787,0.002,2020.3,2020.1,0.48561386]
[1773105265992,1.487,2020.5,2020.1,0.48561386]
[1773105266789,1.94384655,2020.5,2020.1,0.48561386]
[1773105268598,1.94384655,2020.5,2020.1,1.72312818]
[1773105269895,0.45684655,2020.4,2020.1,1.72312818]
[1773105271699,1.23743998,2020.3,2019.9,0.48661386]
[1773105271875,0.45684655,2020.2,2019.9,0.48661386]
[1773105272077,1.23743998,2020.3,2019.7,0.001]
[1773105272078,0.98040891,2020.1,2019.7,0.001]
[1773105272282,0.45684655,2019.9,2019.7,0.001]
[1773105274099,1.69456592,2019.9,2019.7,0.001]
[1773105274471,1.69456592,2019.9,2019.5,0.001]
[1773105274472,0.45684655,2019.8,2019.5,0.001]
[1773105274672,0.45684655,2019.8,2019.5,0.49467686]
[1773105275975,1.69454107,2019.9,2019.5,0.49467686]
[1773105278098,1.69456806,2019.9,2019.5,0.49467686]
[1773105280015,0.45684655,2019.7,2019.4,0.001]
[1773105280302,1.69470644,2019.7,2019.4,0.001]
[1773105281294,1.69457855,2019.9,2019.4,0.49467686]
[1773105281713,0.45684655,2019.8,2019.4,0.49467686]
[1773105283112,0.45684655,2019.8,2019.4,0.001]
[1773105283280,0.45684655,2019.6,2019.3,0.001]
[1773105283911,1.487,2019.5,2019.3,0.001]
[1773105285213,1.487,2019.5,2019.4,0.001]
[1773105285381,3.18177673,2019.5,2019.4,0.001]
[1773105286009,3.18177673,2019.5,2019.3,0.001]
[1773105287013,1.487,2019.5,2019.3,0.49467686]
[1773105287215,1.488,2019.6,2019.4,0.49367686]
[1773105287577,1.488,2019.6,2019.3,0.001]
[1773105287578,0.45684655,2019.5,2019.3,0.001]
[1773105288016,0.46646415,2019.4,2019.1,0.001]
[1773105288232,2.72588513,2019.6,2019.0,0.49467686]
[1773105288233,1.44687306,2019.3,2019.0,0.49467686]
[1773105289139,0.46646415,2019.3,2019.0,0.49467686]
[1773105289307,1.70370043,2019.5,2019.1,0.49203061]
[1773105289506,0.46571988,2019.4,2019.1,0.49203061]
[1773105289698,0.46571988,2019.4,2019.0,0.001]
[1773105291104,0.46571988,2019.3,2019.0,0.001]
[1773105291328,1.70383398,2019.2,2019.0,0.001]
[1773105291504,0.46571988,2019.2,2019.0,0.001]
[1773105293435,1.23809672,2019.3,2019.0,0.49303061]
[1773105293436,0.46571988,2019.3,2019.0,0.49303061]
[1773105293650,1.49,2019.3,2019.0,0.49303061]
[1773105294549,0.46571988,2019.2,2019.0,0.001]
[1773105295635,1.95571988,2019.3,2019.0,0.001]
[1773105295839,1.95571988,2019.3,2019.0,0.49303061]
[1773105296527,1.23981439,2019.7,2019.1,0.49203061]
[1773105296726,1.491,2019.6,2019.1,0.49203061]
[1773105296932,1.95671988,2019.6,2019.1,0.49203061]
[1773105297523,1.95671988,2019.6,2019.2,0.001]
[1773105297724,3.19460225,2019.6,2019.2,0.49303061]
[1773105298042,0.002,2019.3,2019.2,0.49303061]
[1773105300538,0.002,2019.3,2019.2,1.73114471]
[1773105301448,0.002,2019.3,2019.2,0.001]
[1773105302642,0.46771988,2019.3,2019.2,0.001]
[1773105302942,0.46771988,2019.3,2019.0,0.001]
[1773105304136,0.46771988,2019.3,2019.0,1.23923589]
[1773105304447,0.002,2019.3,2019.1,0.48241003]
[1773105304619,0.002,2019.6,2019.3,0.48241003]
[1773105305641,0.002,2019.9,2019.3,0.48241003]
[1773105305945,0.002,2019.9,2019.5,0.48241003]
[1773105306617,0.002,2019.9,2019.7,0.48241003]
[1773105306816,0.002,2020.2,2019.8,0.48241003]
[1773105308545,0.002,2020.2,2019.9,0.48241003]
[1773105308744,0.002,2020.2,2020.1,0.48241003]
[1773105309055,0.002,2020.2,2019.9,1.7200893]
[1773105309625,0.002,2020.2,2020.0,0.48241003]
[1773105310849,0.002,2020.2,2020.0,1.72003205]
[1773105311357,0.002,2020.5,2020.1,0.48241003]
[1773105311851,0.002,2020.5,2020.1,1.46404789]
[1773105312052,0.002,2020.5,2020.2,0.48241003]
[1773105312433,0.002,2020.7,2020.4,0.48241003]
[1773105312624,0.002,2020.7,2020.6,0.48241003]
[1773105312832,0.002,2020.7,2020.6,1.71966629]
[1773105313358,0.002,2020.9,2020.6,1.71966629]
[1773105313359,0.002,2020.9,2020.7,0.48241003]
[1773105314058,0.002,2020.9,2020.5,1.71968059]
[1773105314637,0.002,2020.9,2020.5,0.48241003]
[1773105314957,1.72549124,2020.9,2020.5,0.48241003]
[1773105315160,0.48637931,2020.8,2020.3,0.48241003]
[1773105315859,0.48637931,2020.7,2020.0,0.48241003]
[1773105317961,1.72363557,2020.6,2020.0,1.71999395]
[1773105318463,1.72363557,2020.6,2019.7,5.93285947]
[1773105318464,0.48637931,2020.5,2019.8,1.72011412]
[1773105318967,0.48637931,2020.5,2019.9,0.48241003]
[1773105319737,1.23725626,2020.6,2019.9,0.48241003]
[1773105319937,0.48637931,2020.4,2020.0,0.48241003]
[1773105320845,1.96437931,2020.4,2020.0,0.48241003]
[1773105321994,3.20176287,2020.4,2020.2,0.001]
[1773105322573,0.48637931,2020.4,2020.2,0.001]
[1773105322741,0.48637931,2020.4,2020.0,1.68967803]
[1773105323072,0.48637931,2020.3,2019.8,0.48241003]
[1773105323243,0.48637931,2020.3,2019.8,1.72015004]
[1773105323448,0.48637931,2020.3,2019.7,0.001]
[1773105323668,0.48637931,2020.3,2019.7,1.23880492]
[1773105323967,1.23738924,2020.4,2020.0,0.48241003]
[1773105323968,1.48,2020.4,2020.0,0.48241003]
[1773105324174,1.96637931,2020.4,2020.0,0.48241003]
[1773105324370,1.96637931,2020.4,2019.9,1.23768503]
[1773105324536,0.48637931,2020.3,2019.8,1.72010681]
[1773105326089,1.481,2020.4,2019.9,0.48241003]
[1773105326447,3.20476412,2020.4,2019.9,0.48241003]
[1773105326651,0.48637931,2020.3,2019.9,0.48241003]
[1773105328087,0.48637931,2020.2,2019.7,0.48341003]
[1773105328260,0.48637931,2020.2,2019.7,1.23878802]
[1773105328464,0.48637931,2020.2,2019.7,1.72119805]
[1773105328665,0.48637931,2020.2,2019.8,0.48241003]
[1773105330190,1.72388172,2020.2,2019.8,0.48241003]
[1773105330793,1.72388172,2020.2,2019.8,1.72015435]
[1773105331355,3.20788172,2020.2,2019.8,1.72015435]
[1773105331591,3.20788172,2020.2,2019.8,0.48241003]
[1773105331791,3.15837677,2020.2,2019.8,1.72015562]
[1773105332006,1.92087436,2020.2,2019.8,1.72015562]
[1773105332160,3.15838432,2020.2,2019.8,1.72015562]
[1773105332879,0.48637931,2020.1,2019.8,0.48241003]
[1773105333879,0.48637931,2020.1,2019.7,0.001]
[1773105334572,1.7239418,2020.1,2020.0,0.001]
[1773105337040,0.45860997,2020.0,2019.5,0.001]
[1773105337165,0.45860997,2019.7,2019.2,0.001]
[1773105337369,0.45860997,2019.5,2019.2,0.001]
[1773105337569,0.45860997,2019.5,2019.2,0.002]
[1773105338170,0.45860997,2019.5,2019.2,0.001]
[1773105338986,1.23799148,2019.4,2019.2,0.001]
[1773105339215,0.45860997,2019.3,2019.2,0.001]
[1773105340409,0.45860997,2019.3,2019.0,0.001]
[1773105340713,0.45860997,2019.3,2019.0,0.002]
[1773105341411,1.69672407,2019.2,2019.0,0.002]
[1773105341612,1.487,2019.1,2019.0,0.002]
[1773105341797,1.94560997,2019.1,2019.0,0.001]
[1773105342907,0.45860997,2019.0,2018.7,1.20697364]
[1773105343199,0.45860997,2019.0,2018.8,0.001]
[1773105343386,3.18378539,2019.1,2018.8,0.001]
[1773105343781,0.45860997,2019.3,2018.8,0.46875893]
[1773105343987,1.488,2019.2,2018.8,0.46875893]
[1773105344610,1.94660997,2019.2,2018.8,0.46875893]
[1773105344998,3.18472556,2019.2,2018.8,1.70711531]
[1773105345626,0.45860997,2019.1,2018.8,0.001]
[1773105346615,0.45860997,2019.1,2019.0,0.001]
[1773105347190,1.69678539,2019.1,2019.0,0.001]
[1773105349422,1.23816187,2019.2,2019.0,0.001]
[1773105349625,1.49,2019.3,2019.0,0.46975893]
[1773105349993,0.45860997,2019.7,2019.0,0.46975893]
[1773105350195,2.72787075,2019.6,2019.0,0.46975893]
[1773105350410,3.18648072,2019.6,2019.0,0.46975893]
[1773105350616,0.45860997,2019.5,2019.0,0.46975893]
[1773105351714,1.69660145,2019.4,2019.0,0.46975893]
[1773105351916,1.69660145,2019.4,2019.0,0.002]
[1773105351917,0.4640856,2019.3,2019.0,0.002]
[1773105352226,0.4640856,2019.3,2019.0,0.001]
[1773105352528,0.4640856,2019.3,2018.8,0.001]
[1773105353027,1.491,2019.2,2018.8,0.45873202]
[1773105353225,1.70202763,2019.5,2018.9,0.45773202]
[1773105353411,1.491,2019.2,2018.9,0.45773202]
[1773105354016,2.72912655,2019.2,2018.9,0.45773202]
[1773105354325,3.19321215,2019.2,2018.8,0.001]
[1773105354530,0.4640856,2019.1,2018.8,0.001]
[1773105354825,0.4640856,2019.4,2018.9,0.45773202]
[1773105355029,1.492,2019.1,2018.8,0.001]
[1773105356311,1.238145,2019.2,2018.9,0.45773202]
[1773105356631,1.9560856,2019.1,2018.8,0.001]
[1773105356836,0.4640856,2019.0,2018.8,0.001]
[1773105358438,1.70236331,2019.0,2018.8,0.001]
[1773105359500,1.23827771,2019.0,2018.8,0.001]
[1773105359728,2.73021047,2019.1,2018.8,0.001]
[1773105360033,2.73021047,2019.1,2019.0,0.001]
[1773105360234,2.73114536,2019.2,2019.0,0.45873202]
[1773105360434,0.002,2019.1,2019.0,0.45873202]
[1773105360637,1.495,2019.4,2019.1,0.45773202]
[1773105361306,0.002,2020.0,2019.1,0.45773202]
[1773105361501,0.49084899,2019.8,2019.1,0.45773202]
[1773105362436,1.70189319,2019.7,2019.1,0.45773202]
[1773105362737,1.72865658,2019.7,2019.1,0.45773202]
[1773105362942,0.4640856,2019.5,2019.0,0.001]
[1773105363114,0.4640856,2019.3,2019.0,0.001]
[1773105364845,0.02676339,2019.2,2019.0,0.001]
[1773105365032,0.02676339,2019.2,2019.0,0.47737846]
[1773105366924,1.485,2019.3,2019.0,0.47737846]
[1773105367119,2.74981806,2019.3,2019.0,0.47737846]
[1773105367853,1.488,2019.4,2019.1,0.47637846]
[1773105368017,0.02676339,2019.4,2019.1,0.47637846]
[1773105368221,1.489,2019.5,2019.1,0.47637846]
[1773105368755,1.23805279,2019.3,2019.0,0.001]
[1773105369050,1.23805279,2019.3,2018.9,0.47637846]
[1773105369228,1.26481618,2019.3,2018.9,0.47637846]
[1773105372027,0.48622752,2019.7,2019.1,0.47637846]
[1773105372243,1.493,2019.5,2019.1,0.47637846]
[1773105372427,1.493,2019.5,2019.1,0.47737846]
[1773105372752,0.002,2019.2,2019.1,0.001]
[1773105375164,0.48822752,2019.2,2018.9,0.001]
[1773105376027,0.48822752,2019.2,2018.7,0.001]
[1773105377156,0.48822752,2019.2,2018.2,0.45930935]
[1773105377157,0.48622752,2018.9,2018.2,0.45930935]
[1773105377362,2.45416926,2019.0,2018.2,0.45930935]
[1773105377363,1.98422752,2018.8,2018.2,1.69803366]
[1773105377546,1.98422752,2018.8,2018.2,0.45930935]
[1773105377861,0.48622752,2018.7,2018.2,0.45930935]